Workbook

Sheet 読込長前
A1: ID | B1: 読込FLG | C1: 予算科目CD | D1: 借方科目CD | E1: 貸方科目CD | F1: 金額増 | G1: 金額減 | H1: 摘要 | I1: 発行日 | J1: 財源の種別 | K1: 当月分 | L1: 毎月分 | M1: ７月（4月～7月分） | N1: 執 行 予 定 額 | O1: 簿記項 | P1: 簿記目 | Q1: 簿記節
A2: 1 | B2: 10 | C2: 予算伝票始まり
A3: 2 | B3: 11 | C3: 予算科目CD | D3: 借方科目CD | E3: 貸方科目CD | F3: 金額増 | G3: 金額減 | H3: 摘要 | I3: 発行日
A4: 3 | B4: 0 | C4: 都市部
A5: 4 | B5: 0 | C5: 有形固定資産
A6: 5 | B6: 1 | C6: 110309-0100 | D6: 361065-1000 | E6: 612050-1000 | F6: 20609485 | H6: 分担金 | I6: 2020-12-19 | J6: 分担金 | L6: =ROUNDDOWN($N6/12,0) -> 20609485 | M6: =$N6-$L6*8 -> 82437945 | N6: 247313825
A7: 6 | B7: 1 | C7: 110309-0100 | D7: 361055-1000 | E7: 612050-1000 | F7: 5871021 | H7: 開発負担金 | I7: 2020-12-19 | J7: 開発負担金 | L7: 5871021 | M7: 23484092 | N7: 70452260
A8: 7 | B8: 1 | C8: 110309-0100 | D8: 361075-1000 | E8: 612050-1000 | F8: 11221023 | H8: 受託負担金 | I8: 2020-12-19 | J8: 受託負担金 | L8: 11221023 | M8: 44884094 | N8: 134652278
A9: 8 | B9: 1 | C9: 110309-0100 | D9: 361035-1000 | E9: 612050-1000 | F9: 1854069 | H9: 補助金 | I9: 2020-12-19 | J9: 補助金 | L9: 1854069 | M9: 7416278 | N9: 22248830
A10: 9 | B10: 1 | C10: 110309-0100 | D10: 361025-1000 | E10: 612050-1000 | F10: 10410952 | H10: 負担金 | I10: 2020-12-19 | J10: 負担金 | L10: 10410952 | M10: 41643816 | N10: 124931432
A11: 10 | B11: 1 | C11: 110309-0100 | D11: 361015-1000 | E11: 612050-1000 | F11: 16478387 | H11: 受贈財産 | I11: 2020-12-19 | J11: 受贈財産 | L11: 16478387 | M11: 65913548 | N11: 197740644
A12: 11 | B12: 1 | C12: 110309-0100 | D12: 361045-1000 | E12: 612050-1000 | F12: 5674403 | H12: 一般会計補助金 | I12: 2020-12-19 | J12: 一般会計補助金 | L12: 5674403 | M12: 22697619 | N12: 68092843
A13: 12 | B13: 0 | C13: 合計額 | F13: =SUM(F6:F12) -> 72119340 | J13: 合計額 | L13: =SUM(L6:L12) -> 72119340 | M13: =SUM(M6:M12) -> 288477392 | N13: =SUM(N6:N12) -> 865432112
A14: 13 | B14: 0 | C14: 都市部
A15: 14 | B15: 0 | C15: 無形固定資産 | L15: =ROUNDDOWN($N15/12,0) -> 0 | M15: =$N15-$L15*8 -> 0
A16: 15 | B16: 1 | C16: 110309-0300 | D16: 361065-1000 | E16: 612050-2000 | F16: 0 | H16: 分担金 | I16: 2020-12-19 | J16: 分担金 | L16: 0 | M16: 0 | N16: 0
A17: 16 | B17: 1 | C17: 110309-0300 | D17: 361055-1000 | E17: 612050-2000 | F17: 0 | H17: 開発負担金 | I17: 2020-12-19 | J17: 開発負担金 | L17: 0 | M17: 0 | N17: 0
A18: 17 | B18: 1 | C18: 110309-0300 | D18: 361075-1000 | E18: 612050-2000 | F18: 0 | H18: 受託負担金 | I18: 2020-12-19 | J18: 受託負担金 | L18: 0 | M18: 0 | N18: 0
A19: 18 | B19: 1 | C19: 110309-0300 | D19: 361035-1000 | E19: 612050-2000 | F19: 0 | H19: 補助金 | I19: 2020-12-19 | J19: 補助金 | L19: 0 | M19: 0 | N19: 0
A20: 19 | B20: 1 | C20: 110309-0300 | D20: 361025-1000 | E20: 612050-2000 | F20: 19016430 | H20: 負担金 | I20: 2020-12-19 | J20: 負担金 | L20: 19016430 | M20: 76065724 | N20: 228197164
A21: 20 | B21: 1 | C21: 110309-0300 | D21: 361015-1000 | E21: 612050-2000 | F21: 0 | H21: 受贈財産 | I21: 2020-12-19 | J21: 受贈財産 | L21: 0 | M21: 0 | N21: 0
A22: 21 | B22: 1 | C22: 110309-0300 | D22: 361045-1000 | E22: 612050-2000 | F22: 0 | H22: 一般会計補助金 | I22: 2020-12-19 | J22: 一般会計補助金 | L22: 0 | M22: 0 | N22: 0
A23: 22 | B23: 0 | C23: 合計額 | F23: =SUM(F16:F22) -> 19016430 | J23: 合計額 | L23: =SUM(L16:L22) -> 19016430 | M23: =SUM(M16:M22) -> 76065724 | N23: =SUM(N16:N22) -> 228197164
A24: 23 | B24: 0 | C24: 都祁
A25: 24 | B25: 0 | C25: 有形固定資産
A26: 25 | B26: 1 | C26: 110309-0500 | D26: 361065-1000 | E26: 612050-3000 | F26: 181821 | H26: 分担金 | I26: 2020-12-19 | J26: 分担金 | L26: =ROUNDDOWN($N26/12,0) -> 181821 | M26: =$N26-$L26*8 -> 727293 | N26: 2181861
A27: 26 | B27: 1 | C27: 110309-0500 | D27: 361055-1000 | E27: 612050-3000 | F27: 0 | H27: 開発負担金 | I27: 2020-12-19 | J27: 開発負担金 | L27: 0 | M27: 0 | N27: 0
A28: 27 | B28: 1 | C28: 110309-0500 | D28: 361075-1000 | E28: 612050-3000 | F28: 9948 | H28: 受託負担金 | I28: 2020-12-19 | J28: 受託負担金 | L28: 9948 | M28: 39796 | N28: 119380
A29: 28 | B29: 1 | C29: 110309-0500 | D29: 361035-1000 | E29: 612050-3000 | F29: 6148461 | H29: 補助金 | I29: 2020-12-19 | J29: 補助金 | L29: 6148461 | M29: 24593855 | N29: 73781543
A30: 29 | B30: 1 | C30: 110309-0500 | D30: 361025-1000 | E30: 612050-3000 | F30: 2349422 | H30: 負担金 | I30: 2020-12-19 | J30: 負担金 | L30: 2349422 | M30: 9397696 | N30: 28193072
A31: 30 | B31: 1 | C31: 110309-0500 | D31: 361015-1000 | E31: 612050-3000 | F31: 18791 | H31: 受贈財産 | I31: 2020-12-19 | J31: 受贈財産 | L31: 18791 | M31: 75166 | N31: 225494
A32: 31 | B32: 1 | C32: 110309-0500 | D32: 361045-1000 | E32: 612050-3000 | F32: 4191901 | H32: 一般会計補助金 | I32: 2020-12-19 | J32: 一般会計補助金 | L32: 4191901 | M32: 16767604 | N32: 50302812
A33: 32 | B33: 0 | C33: 合計額 | F33: =SUM(F26:F32) -> 12900344 | J33: 合計額 | L33: =SUM(L26:L32) -> 12900344 | M33: =SUM(M26:M32) -> 51601410 | N33: =SUM(N26:N32) -> 154804162
A34: 33 | B34: 0 | C34: 都祁
A35: 34 | B35: 0 | C35: 無形固定資産
A36: 35 | B36: 1 | C36: 110309-0700 | D36: 361065-1000 | E36: 612050-4000 | F36: 0 | H36: 分担金 | I36: 2020-12-19 | J36: 分担金 | L36: =ROUNDDOWN($N36/12,0) -> 0 | M36: =$N36-$L36*8 -> 0 | N36: 0
A37: 36 | B37: 1 | C37: 110309-0700 | D37: 361055-1000 | E37: 612050-4000 | F37: 0 | H37: 開発負担金 | I37: 2020-12-19 | J37: 開発負担金 | L37: 0 | M37: 0 | N37: 0
A38: 37 | B38: 1 | C38: 110309-0700 | D38: 361075-1000 | E38: 612050-4000 | F38: 0 | H38: 受託負担金 | I38: 2020-12-19 | J38: 受託負担金 | L38: 0 | M38: 0 | N38: 0
A39: 38 | B39: 1 | C39: 110309-0700 | D39: 361035-1000 | E39: 612050-4000 | F39: 0 | H39: 補助金 | I39: 2020-12-19 | J39: 補助金 | L39: 0 | M39: 0 | N39: 0
A40: 39 | B40: 1 | C40: 110309-0700 | D40: 361025-1000 | E40: 612050-4000 | F40: 0 | H40: 負担金 | I40: 2020-12-19 | J40: 負担金 | L40: 0 | M40: 0 | N40: 0
A41: 40 | B41: 1 | C41: 110309-0700 | D41: 361015-1000 | E41: 612050-4000 | F41: 0 | H41: 受贈財産 | I41: 2020-12-19 | J41: 受贈財産 | L41: 0 | M41: 0 | N41: 0
A42: 41 | B42: 1 | C42: 110309-0700 | D42: 361045-1000 | E42: 612050-4000 | F42: 0 | H42: 一般会計補助金 | I42: 2020-12-19 | J42: 一般会計補助金 | L42: 0 | M42: 0 | N42: 0
A43: 42 | B43: 0 | C43: 合計額 | F43: =SUM(F36:F42) -> 0 | J43: 合計額 | L43: =SUM(L36:L42) -> 0 | M43: =SUM(M36:M42) -> 0 | N43: =SUM(N36:N42) -> 0
A44: 43 | B44: 0 | C44: 月ヶ瀬
A45: 44 | B45: 0 | C45: 有形固定資産
A46: 45 | B46: 1 | C46: 110309-0900 | D46: 361065-1000 | E46: 612050-5000 | F46: 26490 | H46: 分担金 | I46: 2020-12-19 | J46: 分担金 | L46: =ROUNDDOWN($N46/12,0) -> 26490 | M46: =$N46-$L46*8 -> 105961 | N46: 317881
A47: 46 | B47: 1 | C47: 110309-0900 | D47: 361055-1000 | E47: 612050-5000 | F47: 0 | H47: 開発負担金 | I47: 2020-12-19 | J47: 開発負担金 | L47: 0 | M47: 0 | N47: 0
A48: 47 | B48: 1 | C48: 110309-0900 | D48: 361075-1000 | E48: 612050-5000 | F48: 3466 | H48: 受託負担金 | I48: 2020-12-19 | J48: 受託負担金 | L48: 3466 | M48: 13875 | N48: 41603
A49: 48 | B49: 1 | C49: 110309-0900 | D49: 361035-1000 | E49: 612050-5000 | F49: 1827030 | H49: 補助金 | I49: 2020-12-19 | J49: 補助金 | L49: 1827030 | M49: 7308128 | N49: 21924368
A50: 49 | B50: 1 | C50: 110309-0900 | D50: 361025-1000 | E50: 612050-5000 | F50: 1226694 | H50: 負担金 | I50: 2020-12-19 | J50: 負担金 | L50: 1226694 | M50: 4906776 | N50: 14720328
A51: 50 | B51: 1 | C51: 110309-0900 | D51: 361015-1000 | E51: 612050-5000 | F51: 0 | H51: 受贈財産 | I51: 2020-12-19 | J51: 受贈財産 | L51: 0 | M51: 0 | N51: 0
A52: 51 | B52: 1 | C52: 110309-0900 | D52: 361045-1000 | E52: 612050-5000 | F52: 256698 | H52: 一般会計補助金 | I52: 2020-12-19 | J52: 一般会計補助金 | L52: 256698 | M52: 1026796 | N52: 3080380
A53: 52 | B53: 0 | C53: 合計額 | F53: =SUM(F46:F52) -> 3340378 | J53: 合計額 | L53: =SUM(L46:L52) -> 3340378 | M53: =SUM(M46:M52) -> 13361536 | N53: =SUM(N46:N52) -> 40084560
A54: 53 | B54: 0 | C54: 月ヶ瀬
A55: 54 | B55: 0 | C55: 無形固定資産
A56: 55 | B56: 1 | C56: 110309-1100 | D56: 361065-1000 | E56: 612050-6000 | F56: 0 | H56: 分担金 | I56: 2020-12-19 | J56: 分担金 | L56: =ROUNDDOWN($N56/12,0) -> 0 | M56: =$N56-$L56*8 -> 0 | N56: 0
A57: 56 | B57: 1 | C57: 110309-1100 | D57: 361055-1000 | E57: 612050-6000 | F57: 0 | H57: 開発負担金 | I57: 2020-12-19 | J57: 開発負担金 | L57: 0 | M57: 0 | N57: 0
A58: 57 | B58: 1 | C58: 110309-1100 | D58: 361075-1000 | E58: 612050-6000 | F58: 0 | H58: 受託負担金 | I58: 2020-12-19 | J58: 受託負担金 | L58: 0 | M58: 0 | N58: 0
A59: 58 | B59: 1 | C59: 110309-1100 | D59: 361035-1000 | E59: 612050-6000 | F59: 805441 | H59: 補助金 | I59: 2020-12-19 | J59: 補助金 | L59: 805441 | M59: 3221768 | N59: 9665296
A60: 59 | B60: 1 | C60: 110309-1100 | D60: 361025-1000 | E60: 612050-6000 | F60: 297082 | H60: 負担金 | I60: 2020-12-19 | J60: 負担金 | L60: 297082 | M60: 1188338 | N60: 3564994
A61: 60 | B61: 1 | C61: 110309-1100 | D61: 361015-1000 | E61: 612050-6000 | F61: 0 | H61: 受贈財産 | I61: 2020-12-19 | J61: 受贈財産 | L61: 0 | M61: 0 | N61: 0
A62: 61 | B62: 1 | C62: 110309-1100 | D62: 361045-1000 | E62: 612050-6000 | F62: 0 | H62: 一般会計補助金 | I62: 2020-12-19 | J62: 一般会計補助金 | L62: 0 | M62: 0 | N62: 0
A63: 62 | B63: 0 | C63: 合計額 | F63: =SUM(F56:F62) -> 1102523 | J63: 合計額 | L63: =SUM(L56:L62) -> 1102523 | M63: =SUM(M56:M62) -> 4410106 | N63: =SUM(N56:N62) -> 13230290
A64: 81 | B64: 0 | C64: 金額合計
A65: 82 | B65: 19 | C65: 予算伝票終わり
A66: 83 | B66: 20 | C66: 簿記伝票始まり
A67: 84 | B67: 22 | C67: 簿記科目CD | D67: 借方科目CD | E67: 貸方科目CD | F67: 借方金額 | G67: 貸方金額 | H67: 摘要 | I67: 発行日
A68: 85 | B68: 0 | C68: 都市部
A69: 86 | B69: 0 | C69: 有形固定資産
A70: 87 | B70: 2 | C70: 110309-0100 | D70: 361065-1000 | E70: 612050-1000 | F70: 20609485 | G70: 20609485 | H70: 分担金
A71: 88 | B71: 2 | C71: 110309-0100 | D71: 361055-1000 | E71: 612050-1000 | F71: 5871021 | G71: 5871021 | H71: 開発負担金
A72: 89 | B72: 2 | C72: 110309-0100 | D72: 361075-1000 | E72: 612050-1000 | F72: 11221023 | G72: 11221023 | H72: 受託負担金
A73: 90 | B73: 2 | C73: 110309-0100 | D73: 361035-1000 | E73: 612050-1000 | F73: 1854069 | G73: 1854069 | H73: 補助金
A74: 91 | B74: 2 | C74: 110309-0100 | D74: 361025-1000 | E74: 612050-1000 | F74: 10410952 | G74: 10410952 | H74: 負担金
A75: 92 | B75: 2 | C75: 110309-0100 | D75: 361015-1000 | E75: 612050-1000 | F75: 16478387 | G75: 16478387 | H75: 受贈財産
A76: 93 | B76: 2 | C76: 110309-0100 | D76: 361045-1000 | E76: 612050-1000 | F76: 5674403 | G76: 5674403 | H76: 一般会計補助金
A77: 94 | B77: 2 | C77: 合計額 | F77: 72119340 | G77: 72119340
A78: 95 | B78: 2 | C78: 都市部
A79: 96 | B79: 2 | C79: 無形固定資産
A80: 97 | B80: 2 | C80: 110309-0300 | D80: 361065-1000 | E80: 612050-2000 | F80: 0 | G80: 0 | H80: 分担金
A81: 98 | B81: 2 | C81: 110309-0300 | D81: 361055-1000 | E81: 612050-2000 | F81: 0 | G81: 0 | H81: 開発負担金
A82: 99 | B82: 2 | C82: 110309-0300 | D82: 361075-1000 | E82: 612050-2000 | F82: 0 | G82: 0 | H82: 受託負担金
A83: 100 | B83: 2 | C83: 110309-0300 | D83: 361035-1000 | E83: 612050-2000 | F83: 0 | G83: 0 | H83: 補助金
A84: 101 | B84: 2 | C84: 110309-0300 | D84: 361025-1000 | E84: 612050-2000 | F84: 19016430 | G84: 19016430 | H84: 負担金
A85: 102 | B85: 2 | C85: 110309-0300 | D85: 361015-1000 | E85: 612050-2000 | F85: 0 | G85: 0 | H85: 受贈財産
A86: 103 | B86: 2 | C86: 110309-0300 | D86: 361045-1000 | E86: 612050-2000 | F86: 0 | G86: 0 | H86: 一般会計補助金
A87: 104 | B87: 0 | C87: 合計額 | F87: 19016430 | G87: 19016430
A88: 105 | B88: 0 | C88: 都祁
A89: 106 | B89: 0 | C89: 有形固定資産
A90: 107 | B90: 2 | C90: 110309-0500 | D90: 361065-1000 | E90: 612050-3000 | F90: 181821 | G90: 181821 | H90: 分担金
A91: 108 | B91: 2 | C91: 110309-0500 | D91: 361055-1000 | E91: 612050-3000 | F91: 0 | G91: 0 | H91: 開発負担金
A92: 109 | B92: 2 | C92: 110309-0500 | D92: 361075-1000 | E92: 612050-3000 | F92: 9948 | G92: 9948 | H92: 受託負担金
A93: 110 | B93: 2 | C93: 110309-0500 | D93: 361035-1000 | E93: 612050-3000 | F93: 6148461 | G93: 6148461 | H93: 補助金
A94: 111 | B94: 0 | C94: 110309-0500 | D94: 361025-1000 | E94: 612050-3000 | F94: 2349422 | G94: 2349422 | H94: 負担金
A95: 112 | B95: 2 | C95: 110309-0500 | D95: 361015-1000 | E95: 612050-3000 | F95: 18791 | G95: 18791 | H95: 受贈財産
A96: 113 | B96: 2 | C96: 110309-0500 | D96: 361045-1000 | E96: 612050-3000 | F96: 4191901 | G96: 4191901 | H96: 一般会計補助金
A97: 114 | B97: 0 | C97: 合計額 | F97: 12900344 | G97: 12900344
A98: 115 | B98: 0 | C98: 都祁
A99: 116 | B99: 0 | C99: 無形固定資産
A100: 117 | B100: 2 | C100: 110309-0700 | D100: 361065-1000 | E100: 612050-4000 | F100: 0 | G100: 0 | H100: 分担金
A101: 118 | B101: 2 | C101: 110309-0700 | D101: 361055-1000 | E101: 612050-4000 | F101: 0 | G101: 0 | H101: 開発負担金
A102: 119 | B102: 2 | C102: 110309-0700 | D102: 361075-1000 | E102: 612050-4000 | F102: 0 | G102: 0 | H102: 受託負担金
A103: 120 | B103: 2 | C103: 110309-0700 | D103: 361035-1000 | E103: 612050-4000 | F103: 0 | G103: 0 | H103: 補助金
A104: 121 | B104: 2 | C104: 110309-0700 | D104: 361025-1000 | E104: 612050-4000 | F104: 0 | G104: 0 | H104: 負担金
A105: 122 | B105: 2 | C105: 110309-0700 | D105: 361015-1000 | E105: 612050-4000 | F105: 0 | G105: 0 | H105: 受贈財産
A106: 123 | B106: 2 | C106: 110309-0700 | D106: 361045-1000 | E106: 612050-4000 | F106: 0 | G106: 0 | H106: 一般会計補助金
A107: 124 | B107: 0 | C107: 合計額 | F107: 0 | G107: 0
A108: 125 | B108: 0 | C108: 月ヶ瀬
A109: 126 | B109: 0 | C109: 有形固定資産
A110: 127 | B110: 2 | C110: 110309-0900 | D110: 361065-1000 | E110: 612050-5000 | F110: 26490 | G110: 26490 | H110: 分担金
A111: 128 | B111: 2 | C111: 110309-0900 | D111: 361055-1000 | E111: 612050-5000 | F111: 0 | G111: 0 | H111: 開発負担金
A112: 129 | B112: 2 | C112: 110309-0900 | D112: 361075-1000 | E112: 612050-5000 | F112: 3466 | G112: 3466 | H112: 受託負担金
A113: 130 | B113: 2 | C113: 110309-0900 | D113: 361035-1000 | E113: 612050-5000 | F113: 1827030 | G113: 1827030 | H113: 補助金
A114: 131 | B114: 2 | C114: 110309-0900 | D114: 361025-1000 | E114: 612050-5000 | F114: 1226694 | G114: 1226694 | H114: 負担金
A115: 132 | B115: 2 | C115: 110309-0900 | D115: 361015-1000 | E115: 612050-5000 | F115: 0 | G115: 0 | H115: 受贈財産
A116: 133 | B116: 2 | C116: 110309-0900 | D116: 361045-1000 | E116: 612050-5000 | F116: 256698 | G116: 256698 | H116: 一般会計補助金
A117: 134 | B117: 0 | C117: 合計額 | F117: 3340378 | G117: 3340378
A118: 135 | B118: 0 | C118: 月ヶ瀬
A119: 136 | B119: 0 | C119: 無形固定資産
A120: 137 | B120: 0 | C120: 110309-1100 | D120: 361065-1000 | E120: 612050-6000 | F120: 0 | G120: 0 | H120: 分担金
A121: 138 | B121: 2 | C121: 110309-1100 | D121: 361055-1000 | E121: 612050-6000 | F121: 0 | G121: 0 | H121: 開発負担金
A122: 139 | B122: 2 | C122: 110309-1100 | D122: 361075-1000 | E122: 612050-6000 | F122: 0 | G122: 0 | H122: 受託負担金
A123: 140 | B123: 2 | C123: 110309-1100 | D123: 361035-1000 | E123: 612050-6000 | F123: 805441 | G123: 805441 | H123: 補助金
A124: 141 | B124: 2 | C124: 110309-1100 | D124: 361025-1000 | E124: 612050-6000 | F124: 297082 | G124: 297082 | H124: 負担金
A125: 142 | B125: 2 | C125: 110309-1100 | D125: 361015-1000 | E125: 612050-6000 | F125: 0 | G125: 0 | H125: 受贈財産
A126: 143 | B126: 2 | C126: 110309-1100 | D126: 361045-1000 | E126: 612050-6000 | F126: 0 | G126: 0 | H126: 一般会計補助金
A127: 162 | B127: 0 | C127: 合計額 | F127: 1102523 | G127: 1102523
A128: 163 | B128: 0 | C128: 金額合計
A129: 164 | B129: 29 | C129: 簿記伝票終わり
A130: 999 | B130: 999 | C130: 全伝票終わり

Sheet 印刷長前
A1: 予算執行伺 | CC1: 簿記伝票種類
A2: 長期前受金戻入執行伺 | CC2: 振替伝票
A3: 決 裁 | B3: 経営企画課
B4: 係 員 | M4: 係 長 | X4: 補 佐 | AI4: 課 長
A8: 審 査 | B8: 経理審査
B9: 係 員 | M9: 係 長 | X9: 補 佐 | AI9: 主 幹 | AT9: 課 長 | CW9: 予算総括 合議
A14: 起案責任者 | M14: 経営企画課 | AG14: 係 | BA14: 氏名 | BU14: 内線電話
A15: 起案日 | M15: 2021-02-02 | AF15: 予算伝票 | AV15: 簿記伝票 | BL15: 一件処理番号 | CL15: 伺伝票ID
A16: 関連情報 | M16: 決裁日 | AE16: 伝票発行日
M17: 2021-02-02 | AE17: 2021-02-02
A19: 摘 要 | M19: JTX 付箋 １セット×１２０９円 ほか６種類
A21: セグメント | Z21: 消費税区分 | AK21: 1 | AW21: 消費税率 | BG21: 10 | BK21: 消費税額 | CH21: 税抜額 | CP21: 0
A23: 水道事業会計 | M23: 令和３年度 | Z23: 予算年度区分 | BE23: 現計予算額 | CP23: 執行後予算残額
A24: 予 算 科 目 | B24: 款 | M24: 21 | CP24: =BE24-(BE28+BX28-CP28) -> -9904000
B25: 項 | M25: 01 | Q25: 営業費用
B26: 目 | M26: 13 | Q26: 総係費
B27: 節 | M27: 25 | Q27: 備消品費 | BE27: 執行前調定済額 | BX27: 調定額増 | CP27: 調定額減
B28: 細節 | BE28: 9904000 | BX28: 0 | CP28: 0
M36: 9904000
A37: 同時に発行される簿記伝票
B38: 借 方 | BE38: 貸 方
A39: 伝 票 １ | B39: 款 | BE39: 款
B40: 項 | BE40: 項
B41: 目 | BE41: 目
B42: 節 | Q42: 備消品費 | BE42: 節 | BT42: 未払金
B43: 細節 | BE43: 細節
B44: 借方金額 | M44: 100 | BE44: 貸方金額 | BP44: 100
A45: 伝 票 ２ | B45: 款 | BE45: 款
B46: 項 | BE46: 項
B47: 目 | BE47: 目
B48: 節 | Q48: 仮払消費税 | BE48: 節 | BT48: 未払金
B49: 細節 | BE49: 細節
B50: 借方金額 | M50: 10 | BE50: 貸方金額 | BP50: 10
J52: （発行課保存）
A53: 長期前受金戻入明細書 (明細)
CL55: 発行日 | CY55: page
A57: 予算伝票
B58: 予算科目
A59: 款
A60: 項
A61: 目
A63: 明細 | B63: 予算科目節 | AX63: 金額 | BM63: 摘要
A73: 簿記伝票
B74: 借方科目 | AX74: 貸方科目
A75: 款
A76: 項
A77: 目
A79: 明細 | B79: 借方科目節 | AF79: 貸方科目節 | BE79: 金額 | BV79: 摘要

Sheet 元データ長前
A1: 都市部
B2: 有形固定資産前受金戻入 | D2: 612050-1000
B3: 財源の種別 | C3: 当月分 | D3: 毎月分 | E3: ７月（4月～7月分） | F3: 執 行 予 定 額
B4: 分担金 | D4: =ROUNDDOWN($F4/12,0) -> 20609485 | E4: =$F4-$D4*8 -> 82437945 | F4: 247313825
B5: 開発負担金 | D5: 5871021 | E5: 23484092 | F5: 70452260
B6: 受託負担金 | D6: 11221023 | E6: 44884094 | F6: 134652278
B7: 補助金 | D7: 1854069 | E7: 7416278 | F7: 22248830
B8: 負担金 | D8: 10410952 | E8: 41643816 | F8: 124931432
B9: 受贈財産 | D9: 16478387 | E9: 65913548 | F9: 197740644
B10: 一般会計補助金 | D10: 5674403 | E10: 22697619 | F10: 68092843
B11: 合計額 | D11: =SUM(D4:D10) -> 72119340 | E11: =SUM(E4:E10) -> 288477392 | F11: =SUM(F4:F10) -> 865432112
B13: 無形固定資産前受金戻入 | D13: 612050-2000
B14: 財源の種別 | C14: 当月分 | D14: 毎月分 | E14: ７月（4月～7月分） | F14: 執 行 予 定 額
B15: 分担金 | D15: =ROUNDDOWN($F15/12,0) -> 0 | E15: =$F15-$D15*8 -> 0 | F15: 0
B16: 開発負担金 | D16: 0 | E16: 0 | F16: 0
B17: 受託負担金 | D17: 0 | E17: 0 | F17: 0
B18: 補助金 | D18: 0 | E18: 0 | F18: 0
B19: 負担金 | D19: =ROUNDDOWN($F19/12,0) -> 19016430 | E19: 76065724 | F19: 228197164
B20: 受贈財産 | D20: =ROUNDDOWN($F20/12,0) -> 0 | E20: 0 | F20: 0
B21: 一般会計補助金 | D21: 0 | E21: 0 | F21: 0
B22: 合計額 | D22: =SUM(D15:D21) -> 19016430 | E22: =SUM(E15:E21) -> 76065724 | F22: =SUM(F15:F21) -> 228197164
A25: 都祁
B26: 有形固定資産前受金戻入 | D26: 612050-3000
B27: 財源の種別 | D27: ８月 | E27: ７月（4月～7月分） | F27: 合 計
B28: 分担金 | D28: =ROUNDDOWN($F28/12,0) -> 181821 | E28: =$F28-$D28*8 -> 727293 | F28: 2181861
B29: 開発負担金 | D29: 0 | E29: 0 | F29: 0
B30: 受託負担金 | D30: 9948 | E30: 39796 | F30: 119380
B31: 補助金 | D31: 6148461 | E31: 24593855 | F31: 73781543
B32: 負担金 | D32: 2349422 | E32: 9397696 | F32: 28193072
B33: 受贈財産 | D33: 18791 | E33: 75166 | F33: 225494
B34: 一般会計補助金 | D34: 4191901 | E34: 16767604 | F34: 50302812
B35: 合計額 | D35: =SUM(D28:D34) -> 12900344 | E35: =SUM(E28:E34) -> 51601410 | F35: 154804162
B38: 無形固定資産前受金戻入 | D38: 612050-4000
B39: 財源の種別 | D39: ８月 | E39: ７月（4月～7月分） | F39: 合 計
B40: 分担金 | D40: =ROUNDDOWN($F40/12,0) -> 0 | E40: =$F40-$D40*8 -> 0 | F40: 0
B41: 開発負担金 | D41: 0 | E41: 0 | F41: 0
B42: 受託負担金 | D42: 0 | E42: 0 | F42: 0
B43: 補助金 | D43: 0 | E43: 0 | F43: 0
B44: 負担金 | D44: 0 | E44: 0 | F44: 0
B45: 受贈財産 | D45: 0 | E45: 0 | F45: 0
B46: 一般会計補助金 | D46: 0 | E46: 0 | F46: 0
B47: 合計額 | D47: =SUM(D40:D46) -> 0 | E47: =SUM(E40:E46) -> 0 | F47: =SUM(F40:F46) -> 0
A49: 月ヶ瀬
B50: 有形固定資産前受金戻入 | D50: 612050-5000
B51: 財源の種別 | D51: ８月 | E51: ７月（4月～7月分） | F51: 合 計
B52: 分担金 | D52: =ROUNDDOWN($F52/12,0) -> 26490 | E52: =$F52-$D52*8 -> 105961 | F52: 317881
B53: 開発負担金 | D53: 0 | E53: 0 | F53: 0
B54: 受託負担金 | D54: 3466 | E54: 13875 | F54: 41603
B55: 補助金 | D55: 1827030 | E55: 7308128 | F55: 21924368
B56: 負担金 | D56: 1226694 | E56: 4906776 | F56: 14720328
B57: 受贈財産 | D57: 0 | E57: 0 | F57: 0
B58: 一般会計補助金 | D58: 256698 | E58: 1026796 | F58: 3080380
B59: 合計額 | D59: =SUM(D52:D58) -> 3340378 | E59: =SUM(E52:E58) -> 13361536 | F59: =SUM(F52:F58) -> 40084560
B61: 無形固定資産前受金戻入 | D61: 612050-6000
B62: 財源の種別 | D62: ８月 | E62: ７月（4月～7月分） | F62: 合 計
B63: 分担金 | D63: =ROUNDDOWN($F63/12,0) -> 0 | E63: =$F63-$D63*8 -> 0 | F63: 0
B64: 開発負担金 | D64: 0 | E64: 0 | F64: 0
B65: 受託負担金 | D65: 0 | E65: 0 | F65: 0
B66: 補助金 | D66: 805441 | E66: 3221768 | F66: 9665296
B67: 負担金 | D67: 297082 | E67: 1188338 | F67: 3564994
B68: 受贈財産 | D68: 0 | E68: 0 | F68: 0
B69: 一般会計補助金 | D69: 0 | E69: 0 | F69: 0
B70: 合計額 | D70: =SUM(D63:D69) -> 1102523 | E70: =SUM(E63:E69) -> 4410106 | F70: =SUM(F63:F69) -> 13230290

Sheet ukagai_output
A1: 伝票種類 | B1: 伝票種類CD | C1: 伺ID | D1: 一件処理番号 | E1: 所属CD | F1: 起案日 | G1: 予算伝票件数 | H1: 簿記伝票件数 | I1: 流用伺元件数 | J1: 流用伺先件数 | K1: 納付書出力CD | L1: 伝票番号 | M1: 伺CD | N1: 所属名称 | O1: 伺名称
A2: 伺 | B2: 1 | C2: 211 | D2: 154 | E2: 10110000 | F2: 2021-02-25 | N2: 経営企画課
A4: 伝票種類 | B4: 伝票種類CD | C4: 予算伝票ID | D4: 伺ID | E4: 連番 | F4: 執行CD | G4: 一件処理番号 | H4: 摘要名称 | I4: 年度 | J4: 予算CD | K4: 借方CD | L4: 貸方CD | M4: 金額増額 | N4: 金額減額 | O4: 借方金額 | P4: 貸方金額 | Q4: 所属CD | R4: 発行日 | S4: 処理FLG | T4: 消費税額 | U4: 消費税CD | V4: 消費税率 | W4: 伺CD | X4: セグCD | Y4: 簿記伝票ID | Z4: 予備1 | AA4: 執行CD名称 | AB4: 予算科目名称 | AC4: 借方科目名称 | AD4: 貸方科目名称 | AE4: 予算款 | AF4: 予算款額 | AG4: 予算項 | AH4: 予算項額 | AI4: 予算目 | AJ4: 予算目額 | AK4: 予算節 | AL4: 予算節額 | AM4: 所属名称 | AN4: 支出負担行為済額 | AO4: 支出命令済額 | AP4: 調定済額
A5: 予算 | B5: 2 | C5: 81335 | D5: 211 | E5: 1 | G5: 211 | H5: 定例調定：都市部：隔月分 | I5: 2020 | J5: 110101-0100 | K5: 152010-1000 | L5: 611010-1000 | M5: 549393689 | O5: 0 | P5: 0 | Q5: 10110000 | R5: 2020-11-18 | T5: 0 | U5: 1 | V5: 10 | Z5: 0 | AB5: 水道料金収入 | AC5: 給水未収金 | AD5: 水道料金収入 | AE5: 水道事業収益 | AF5: 9511000000 | AG5: 営業収益 | AH5: 7784862000 | AI5: 給水収益 | AJ5: 7762551000 | AK5: 水道料金収入 | AL5: 7609711000 | AM5: 経営企画課 | AN5: 0 | AO5: 0 | AP5: 1603341535
A6: 予算 | B6: 2 | C6: 81336 | D6: 211 | E6: 1 | G6: 211 | H6: 定例調定：都市部：毎月分 | I6: 2020 | J6: 110101-0100 | K6: 152010-1000 | L6: 611010-1000 | M6: 55523150 | O6: 0 | P6: 0 | Q6: 10110000 | R6: 2020-11-18 | T6: 0 | U6: 1 | V6: 10 | Z6: 0 | AB6: 水道料金収入 | AC6: 給水未収金 | AD6: 水道料金収入 | AE6: 水道事業収益 | AF6: 9511000000 | AG6: 営業収益 | AH6: 7784862000 | AI6: 給水収益 | AJ6: 7762551000 | AK6: 水道料金収入 | AL6: 7609711000 | AM6: 経営企画課 | AN6: 0 | AO6: 0 | AP6: 1603341535
A7: 予算 | B7: 2 | C7: 81337 | D7: 211 | E7: 1 | G7: 211 | H7: 調定増：現年度：都市部 | I7: 2020 | J7: 110101-0100 | K7: 152010-1000 | L7: 611010-1000 | M7: 14419 | O7: 0 | P7: 0 | Q7: 10110000 | R7: 2020-11-18 | T7: 0 | U7: 1 | V7: 10 | Z7: 0 | AB7: 水道料金収入 | AC7: 給水未収金 | AD7: 水道料金収入 | AE7: 水道事業収益 | AF7: 9511000000 | AG7: 営業収益 | AH7: 7784862000 | AI7: 給水収益 | AJ7: 7762551000 | AK7: 水道料金収入 | AL7: 7609711000 | AM7: 経営企画課 | AN7: 0 | AO7: 0 | AP7: 1603341535
A8: 予算 | B8: 2 | C8: 81338 | D8: 211 | E8: 1 | G8: 211 | H8: 調定減：現年度：都市部 | I8: 2020 | J8: 110101-0100 | K8: 611010-1000 | L8: 152010-1000 | N8: 28509 | O8: 0 | P8: 0 | Q8: 10110000 | R8: 2020-11-18 | T8: 0 | U8: 1 | V8: 10 | Z8: 0 | AB8: 水道料金収入 | AC8: 水道料金収入 | AD8: 給水未収金 | AE8: 水道事業収益 | AF8: 9511000000 | AG8: 営業収益 | AH8: 7784862000 | AI8: 給水収益 | AJ8: 7762551000 | AK8: 水道料金収入 | AL8: 7609711000 | AM8: 経営企画課 | AN8: 0 | AO8: 0 | AP8: 1603341535
A9: 予算 | B9: 2 | C9: 81339 | D9: 211 | E9: 1 | G9: 211 | H9: 定例調定：都祁：隔月分 | I9: 2020 | J9: 110101-0300 | K9: 152010-1000 | L9: 611010-2000 | M9: 10208052 | O9: 0 | P9: 0 | Q9: 10110000 | R9: 2020-11-18 | T9: 0 | U9: 1 | V9: 10 | Z9: 0 | AB9: 都祁水道料金収入 | AC9: 給水未収金 | AD9: 都祁水道料金収入 | AE9: 水道事業収益 | AF9: 9511000000 | AG9: 営業収益 | AH9: 7784862000 | AI9: 給水収益 | AJ9: 7762551000 | AK9: 都祁水道料金収入 | AL9: 127333000 | AM9: 経営企画課 | AN9: 0 | AO9: 0 | AP9: 28581624
A11: 伝票種類 | B11: 伝票種類CD | C11: 簿記伝票ID | D11: 伺ID | E11: 連番 | F11: 執行CD | G11: 一件処理番号 | H11: 摘要名称 | I11: 年度 | J11: 予算CD | K11: 借方CD | L11: 貸方CD | M11: 金額増額 | N11: 金額減額 | O11: 借方金額 | P11: 貸方金額 | Q11: 所属CD | R11: 発行日 | S11: 処理FLG | T11: 消費税額 | U11: 消費税CD | V11: 消費税率 | W11: 伺CD | X11: セグCD | Y11: 簿記伝票ID | Z11: 予備1 | AA11: 執行CD名称 | AB11: 予算科目名称 | AC11: 借方款 | AD11: 借方項 | AE11: 借方目 | AF11: 借方節 | AG11: 貸方款 | AH11: 貸方項 | AI11: 貸方目 | AJ11: 貸方節 | AK11: 予算項 | AL11: 予算項額 | AM11: 予算目 | AN11: 予算目額 | AO11: 予算節 | AP11: 予算節額 | AQ11: 所属名称
A12: 簿記 | B12: 3 | C12: 70738 | D12: 211 | E12: 1 | F12: 11 | G12: 211 | H12: 定例調定：都市部：隔月分 | I12: 2020 | J12: =B4 -> 伝票種類CD | K12: =C4 -> 予算伝票ID | L12: =D4 -> 伺ID | M12: 0 | N12: 0 | O12: 549393689 | P12: 549393689 | Q12: 10110000 | R12: 2020-11-18 | T12: 0 | U12: 99 | V12: 10 | Z12: 0 | AA12: 調定 | AQ12: 経営企画課
A13: 簿記 | B13: 3 | C13: 70739 | D13: 211 | E13: 1 | F13: 11 | G13: 211 | H13: 消費税：定例調定：都市部：隔月分 | I13: 2020 | K13: 152010-1000 | L13: 336010-1000 | M13: 0 | N13: 0 | O13: 54939369 | P13: 54939369 | Q13: 10110000 | R13: 2020-11-18 | T13: 0 | U13: 99 | V13: 10 | Z13: 0 | AA13: 調定 | AC13: 流動資産 | AD13: 未収金 | AE13: 営業未収金 | AF13: 給水未収金 | AG13: 流動負債 | AH13: その他流動負債 | AI13: 仮受消費税 | AJ13: 仮受消費税 | AQ13: 経営企画課
A14: 簿記 | B14: 3 | C14: 70740 | D14: 211 | E14: 1 | F14: 11 | G14: 211 | H14: 定例調定：都市部：毎月分 | I14: 2020 | J14: =B5 -> 2 | K14: =C5 -> 81335 | L14: =D5 -> 211 | M14: 0 | N14: 0 | O14: 55523150 | P14: 55523150 | Q14: 10110000 | R14: 2020-11-18 | T14: 0 | U14: 99 | V14: 10 | Z14: 0 | AA14: 調定 | AQ14: 経営企画課
A15: 簿記 | B15: 3 | C15: 70741 | D15: 211 | E15: 1 | F15: 11 | G15: 211 | H15: 消費税： | I15: 2020 | K15: 152010-1000 | L15: 336010-1000 | M15: 0 | N15: 0 | O15: 5552315 | P15: 5552315 | Q15: 10110000 | R15: 2020-11-18 | T15: 0 | U15: 99 | V15: 10 | Z15: 0 | AA15: 調定 | AC15: 流動資産 | AD15: 未収金 | AE15: 営業未収金 | AF15: 給水未収金 | AG15: 流動負債 | AH15: その他流動負債 | AI15: 仮受消費税 | AJ15: 仮受消費税 | AQ15: 経営企画課
A16: 簿記 | B16: 3 | C16: 70742 | D16: 211 | E16: 1 | F16: 11 | G16: 211 | H16: 調定増：現年度：都市部 | I16: 2020 | J16: =B6 -> 2 | K16: =C6 -> 81336 | L16: =D6 -> 211 | M16: 0 | N16: 0 | O16: 14419 | P16: 14419 | Q16: 10110000 | R16: 2020-11-18 | T16: 0 | U16: 99 | V16: 10 | Z16: 0 | AA16: 調定 | AQ16: 経営企画課
A17: 簿記 | B17: 3 | C17: 70743 | D17: 211 | E17: 1 | F17: 11 | G17: 211 | H17: 消費税： | I17: 2020 | K17: 152010-1000 | L17: 336010-1000 | M17: 0 | N17: 0 | O17: 1442 | P17: 1442 | Q17: 10110000 | R17: 2020-11-18 | T17: 0 | U17: 99 | V17: 10 | Z17: 0 | AA17: 調定 | AC17: 流動資産 | AD17: 未収金 | AE17: 営業未収金 | AF17: 給水未収金 | AG17: 流動負債 | AH17: その他流動負債 | AI17: 仮受消費税 | AJ17: 仮受消費税 | AQ17: 経営企画課
A18: 簿記 | B18: 3 | C18: 70744 | D18: 211 | E18: 1 | F18: 11 | G18: 211 | H18: 調定減：現年度：都市部 | I18: 2020 | J18: =B8 -> 2 | K18: =C8 -> 81338 | L18: =D8 -> 211 | M18: 0 | N18: 0 | O18: 28509 | P18: 28509 | Q18: 10110000 | R18: 2020-11-18 | T18: 0 | U18: 99 | V18: 10 | Z18: 0 | AA18: 調定 | AQ18: 経営企画課
A19: 簿記 | B19: 3 | C19: 70745 | D19: 211 | E19: 1 | F19: 11 | G19: 211 | H19: 消費税： | I19: 2020 | K19: 336010-1000 | L19: 152010-1000 | M19: 0 | N19: 0 | O19: 2851 | P19: 2851 | Q19: 10110000 | R19: 2020-11-18 | T19: 0 | U19: 99 | V19: 10 | Z19: 0 | AA19: 調定 | AC19: 流動負債 | AD19: その他流動負債 | AE19: 仮受消費税 | AF19: 仮受消費税 | AG19: 流動資産 | AH19: 未収金 | AI19: 営業未収金 | AJ19: 給水未収金 | AQ19: 経営企画課
A20: 簿記 | B20: 3 | C20: 70746 | D20: 211 | E20: 1 | F20: 11 | G20: 211 | H20: 定例調定：都祁：隔月分 | I20: 2020 | J20: =B11 -> 伝票種類CD | K20: =C11 -> 簿記伝票ID | L20: =D11 -> 伺ID | M20: 0 | N20: 0 | O20: 10208052 | P20: 10208052 | Q20: 10110000 | R20: 2020-11-18 | T20: 0 | U20: 99 | V20: 10 | Z20: 0 | AA20: 調定 | AQ20: 経営企画課
A21: 簿記 | B21: 3 | C21: 70747 | D21: 211 | E21: 1 | F21: 11 | G21: 211 | H21: 消費税： | I21: 2020 | K21: 152010-1000 | L21: 336010-1000 | M21: 0 | N21: 0 | O21: 1020805 | P21: 1020805 | Q21: 10110000 | R21: 2020-11-18 | T21: 0 | U21: 99 | V21: 10 | Z21: 0 | AA21: 調定 | AC21: 流動資産 | AD21: 未収金 | AE21: 営業未収金 | AF21: 給水未収金 | AG21: 流動負債 | AH21: その他流動負債 | AI21: 仮受消費税 | AJ21: 仮受消費税 | AQ21: 経営企画課
A23: 伝票種類 | B23: 伝票種類CD | C23: 支払情報ID | D23: 伺ID | E23: 一件処理番号 | F23: 相手方CD | G23: 相手方登録CD | H23: 支払方法CD | I23: 支払日 | J23: 控除額 | K23: 請求日 | L23: 請求番号 | M23: 相手方登録CD | N23: 相手方名称１ | O23: 相手方名称２ | P23: 相手方郵便番号 | Q23: 相手方住所 | R23: 相手方かな | S23: 相手方種別 | T23: 電話番号 | U23: FAX番号 | V23: E-Mail | W23: 金融機関CD | X23: 口座種別 | Y23: 口座番号 | Z23: 口座名義人 | AA23: 口座用途区分
A25: 伝票種類 | B25: 伝票種類CD | C25: ユーザー名 | D25: 現年度 | E25: 会計区分
A26: その他情報 | B26: 5 | C26: 池田 修 | D26: 2020 | E26: 奈良市水道事業
A28: 伝票種類 | B28: 伝票種類CD | C28: 予算額ID | D28: 伺ID | E28: 予算種類CD | F28: 年度 | G28: 予算CD | H28: 予算額増 | I28: 予算額減 | J28: 日付 | K28: 承認ステータス | L28: 予算款 | M28: 予算項 | N28: 予算目 | O28: 予算節 | P28: 流用前予算現額
